bitfinex-derivatives/quotes_BNBF0:USTF0_20260114
["timestamp","ask_amount","ask_price","bid_price","bid_amount"]
[1768364377292,0.18391145,947.32,944.86,1.5670494]
[1768364380597,0.18391145,947.32,944.81,1.5670494]
[1768364386403,0.18391145,947.32,944.75,1.5670494]
[1768364387099,0.18391145,947.32,944.85,1.5670494]
[1768364387304,0.18391145,947.32,944.87,1.5670494]
[1768364387599,0.18391145,947.32,944.99,1.5670494]
[1768364387804,0.18391145,947.32,945.0,1.5670494]
[1768364388001,0.18391145,947.32,945.01,1.5670494]
[1768364388299,0.18391145,947.32,944.98,1.5670494]
[1768364388500,0.18391145,947.32,945.01,1.5670494]
[1768364388703,0.18391145,947.32,945.04,1.5670494]
[1768364389304,0.18391145,947.32,945.02,1.5670494]
[1768364390306,0.18391145,947.32,945.01,1.5670494]
[1768364390602,0.18391145,947.32,945.06,1.5670494]
[1768364391408,0.18391145,947.32,945.05,1.5670494]
[1768364391708,0.18391145,947.32,945.16,1.5670494]
[1768364391910,0.18391145,947.32,945.2,1.5670494]
[1768364392408,0.18391145,947.32,945.17,1.5670494]
[1768364393006,0.18391145,947.32,945.2,1.5670494]
[1768364393410,0.18391145,947.32,945.17,1.5670494]
[1768364393609,0.18391145,947.32,945.23,1.5670494]
[1768364394505,0.18391145,947.32,945.07,1.5670494]
[1768364395307,0.18391145,947.32,945.06,1.5670494]
[1768364396310,0.18391145,947.32,945.05,1.5670494]
[1768364397312,0.18391145,947.32,945.04,1.5670494]
[1768364399312,0.18391145,947.32,945.03,1.5670494]
[1768364400515,0.18391145,947.32,945.07,1.5670494]
[1768364400716,0.18391145,947.32,944.94,1.5670494]
[1768364401317,0.18391145,947.32,944.92,1.5670494]
[1768364401517,0.18391145,947.32,944.82,1.5670494]
[1768364401718,0.18391145,947.32,944.72,1.5670494]
[1768364403014,0.18391145,947.32,944.71,1.5670494]
[1768364406621,0.18391145,947.32,944.7,1.5670494]
[1768364406824,0.18391145,947.32,944.58,1.5670494]
[1768364408227,0.18391145,947.32,944.57,1.5670494]
[1768364410225,0.18391145,947.32,944.56,1.5670494]
[1768364410824,0.18391145,947.32,944.57,1.5670494]
[1768364411729,0.18391145,947.32,944.53,1.5670494]
[1768364411927,0.18391145,947.32,944.52,1.5670494]
[1768364413325,0.18391145,947.32,944.51,1.5670494]
[1768364413825,0.18391145,947.32,944.45,1.5670494]
[1768364414224,0.18391145,947.32,944.44,1.5670494]
[1768364414924,0.18391145,947.32,944.41,1.5670494]
[1768364415429,0.18391145,947.32,944.4,1.5670494]
[1768364416231,0.18391145,947.32,944.39,1.5670494]
[1768364417230,0.18391145,947.32,944.38,1.5670494]
[1768364417431,5.1952774,947.91,944.38,1.5670494]
[1768364417628,0.1839727,946.59,944.38,1.5670494]
[1768364417827,5.1952774,947.91,944.38,1.5670494]
[1768364418334,5.1952774,947.91,944.37,1.5670494]
[1768364418830,5.1952774,947.92,944.37,1.5670494]
[1768364419130,0.18397367,947.03,944.37,1.5670494]
[1768364419329,0.18397367,947.03,944.36,1.5670494]
[1768364420530,0.18397367,947.03,944.3,1.5670494]
[1768364421234,0.18397367,947.03,944.28,1.5670494]
[1768364421534,0.18397367,947.03,944.21,1.5670494]
[1768364421731,0.18397367,947.03,944.22,1.5670494]
[1768364422430,0.18397367,947.03,944.21,1.5670494]
[1768364423234,0.18397367,947.03,944.2,1.5670494]
[1768364424832,0.18397367,947.03,944.07,0.18397319]
[1768364427340,5.1952774,947.72,944.02,1.5670494]
[1768364427741,0.18401064,946.8,944.08,0.18401064]
[1768364439458,0.18401064,946.8,944.22,1.5670494]
[1768364440359,0.18401064,946.8,944.33,1.5670494]
[1768364440560,0.18401064,946.8,944.35,1.5670494]
[1768364441155,0.18401064,946.8,944.36,1.5670494]
[1768364441356,0.18401064,946.8,944.42,1.5670494]
[1768364442359,0.18401064,946.8,944.45,1.5670494]
[1768364442864,0.18401064,946.8,944.51,1.5670494]
[1768364443064,0.18401064,946.8,944.52,1.5670494]
[1768364443363,0.18401064,946.8,944.54,1.5670494]
[1768364444360,0.18401064,946.8,944.57,1.5670494]
[1768364446065,0.18401064,946.8,944.58,1.5670494]
[1768364448266,0.18401064,946.8,944.59,1.5670494]
[1768364450363,0.18401064,946.8,944.6,1.5670494]
[1768364450564,0.18401064,946.8,944.59,1.5670494]
[1768364451264,0.18401064,946.8,944.6,1.5670494]
[1768364458369,0.18401064,946.8,944.61,1.5670494]
[1768364459266,0.18401064,946.8,944.6,1.5670494]
[1768364459471,0.18401064,946.8,944.08,0.18401064]
[1768364459472,0.18401064,946.8,944.61,1.5670494]
[1768364460271,0.18401064,946.8,944.6,1.5670494]
[1768364460470,0.18401064,946.8,944.62,1.5670494]
[1768364464174,0.18401064,946.8,944.61,1.5670494]
[1768364469274,0.18401064,946.8,944.6,1.5670494]
[1768364470278,0.18401064,946.8,944.61,1.5670494]
[1768364472376,0.18401064,946.8,944.62,1.5670494]
[1768364474279,0.18401064,946.8,944.63,1.5670494]
[1768364475180,0.18401064,946.8,944.64,1.5670494]
[1768364477382,0.18401064,946.8,944.65,1.5670494]
[1768364478179,0.18401064,946.8,944.67,1.5670494]
[1768364479283,0.18401064,946.8,944.68,1.5670494]
[1768364480286,0.18401064,946.8,944.69,1.5670494]
[1768364481182,0.18401064,946.8,944.7,1.5670494]
[1768364481387,0.18401064,946.8,944.71,1.5670494]
[1768364482184,0.18401064,946.8,944.74,1.5670494]
[1768364483189,0.18401064,946.8,944.77,1.5670494]
[1768364484185,0.18401064,946.8,944.78,1.5670494]
[1768364485289,0.18401064,946.8,944.8,1.5670494]
[1768364486289,0.18401064,946.8,944.82,1.5670494]
[1768364487284,0.18401064,946.8,944.83,1.5670494]
[1768364500298,0.18401064,946.8,944.84,1.5670494]
[1768364515408,0.18401064,946.8,944.83,1.5670494]
[1768364520512,0.18401064,946.8,944.81,1.5670494]
[1768364527721,0.18401064,946.8,944.82,1.5670494]
[1768364528018,0.18401064,946.8,944.84,1.5670494]
[1768364528219,0.18401064,946.8,944.83,1.5670494]
[1768364528721,0.18401064,946.8,944.96,1.5670494]
[1768364529218,0.18401064,946.8,944.93,1.5670494]
[1768364529419,0.18401064,946.8,944.94,1.5670494]
[1768364529722,0.18401064,946.8,945.08,1.5670494]
[1768364529919,0.18401064,946.8,944.85,1.5670494]
[1768364530120,0.18401064,946.8,944.83,1.5670494]
[1768364530623,0.18401064,946.8,944.08,0.18401064]
[1768364530624,0.18401064,946.8,944.85,1.5670494]
[1768364535422,0.18401064,946.8,944.86,1.5670494]
[1768364535726,0.18401064,946.8,944.88,1.5670494]
[1768364535926,0.18401064,946.8,944.9,1.5670494]
[1768364537026,0.18401064,946.8,944.91,1.5670494]
[1768364537523,0.18401064,946.8,944.98,1.5670494]
[1768364538124,0.18401064,946.8,944.97,1.5670494]
[1768364539123,0.18401064,946.8,944.29,2.6117491]
[1768364539124,0.18401064,946.8,944.96,1.5670494]
[1768364541129,0.18401064,946.8,944.95,1.5670494]
[1768364541430,0.18401064,946.8,944.96,1.5670494]
[1768364541730,0.18401064,946.8,945.01,1.5670494]
[1768364541925,0.18401064,946.8,945.04,1.5670494]
[1768364542130,0.18401064,946.8,945.03,1.5670494]
[1768364542324,0.18401064,946.8,945.08,1.5670494]
[1768364543133,0.18401064,946.8,945.07,1.5670494]
[1768364544229,0.18401064,946.8,945.06,1.5670494]
[1768364544731,0.18401064,946.8,945.05,1.5670494]
[1768364545334,0.18401064,946.8,945.04,1.5670494]
[1768364546233,0.18401064,946.8,945.05,1.5670494]
[1768364546431,0.18401064,946.8,945.15,1.5670494]
[1768364546833,0.18401064,946.8,945.2,1.5670494]
[1768364547131,0.18401064,946.8,945.18,1.5670494]
[1768364547436,0.18401064,946.8,945.27,1.5670494]
[1768364547736,0.18401064,946.8,945.28,1.5670494]
[1768364548236,0.18401064,946.8,945.25,1.5670494]
[1768364548540,0.18401064,946.8,945.26,1.5670494]
[1768364548741,0.18401064,946.8,945.31,1.5670494]
[1768364549242,0.18401064,946.8,945.28,1.5670494]
[1768364550344,0.18401064,946.8,945.26,1.5670494]
[1768364551144,0.18401064,946.8,945.24,1.5670494]
[1768364552139,0.18401064,946.8,945.22,1.5670494]
[1768364552740,0.18401064,946.8,945.2,1.5670494]
[1768364553242,0.18401064,946.8,945.19,1.5670494]
[1768364553942,0.18401064,946.8,945.16,1.5670494]
[1768364554145,0.18401064,946.8,945.14,1.5670494]
[1768364555147,0.18401064,946.8,945.09,1.5670494]
[1768364555641,0.18401064,946.8,945.1,1.5670494]
[1768364556243,0.18401064,946.8,945.09,1.5670494]
[1768364558148,0.18401064,946.8,945.08,1.5670494]
[1768364559147,0.18401064,946.8,945.06,1.5670494]
[1768364565656,0.18401064,946.8,945.04,1.5670494]
[1768364566152,0.18401064,946.8,945.05,1.5670494]
[1768364567159,0.18401064,946.8,945.06,1.5670494]
[1768364568258,0.18401064,946.8,944.97,1.5670494]
[1768364569057,0.18401064,946.8,944.98,1.5670494]
[1768364570160,0.18401064,946.8,944.99,1.5670494]
[1768364572158,0.18401064,946.8,945.0,1.5670494]
[1768364572362,0.18401064,946.8,944.99,1.5670494]
[1768364572862,0.18401064,946.8,944.96,1.5670494]
[1768364573159,0.18401064,946.8,944.93,1.5670494]
[1768364574861,0.18401064,946.8,944.84,1.5670494]
[1768364575259,0.18401064,946.8,944.85,1.5670494]
[1768364577167,0.18401064,946.8,944.86,1.5670494]
[1768364578265,0.18401064,946.8,944.87,1.5670494]
[1768364579065,0.18401064,946.8,944.88,1.5670494]
[1768364580070,0.18401064,946.8,944.86,1.5670494]
[1768364580271,0.18401064,946.8,944.87,1.5670494]
[1768364580771,0.18401064,946.8,944.88,1.5670494]
[1768364581171,0.18401064,946.8,944.89,1.5670494]
[1768364582173,0.18401064,946.8,944.9,1.5670494]
[1768364583169,0.18401064,946.8,944.91,1.5670494]
[1768364584466,0.18401064,946.8,944.92,1.5670494]
[1768364585171,0.18401064,946.8,944.93,1.5670494]
[1768364585472,0.18401064,946.8,944.92,1.5670494]
[1768364586169,0.18401064,946.8,944.93,1.5670494]
[1768364594573,0.18401064,946.8,944.92,1.5670494]
[1768364596178,0.18401064,946.8,944.93,1.5670494]
[1768364598178,0.18401064,946.8,944.94,1.5670494]
[1768364601277,0.18401064,946.8,944.95,1.5670494]
[1768364603279,0.18401064,946.8,944.96,1.5670494]
[1768364605682,0.18401064,946.8,944.97,1.5670494]
[1768364607382,0.18401064,946.8,944.98,1.5670494]
[1768364607682,0.18401064,946.8,944.94,1.5670494]
[1768364607887,0.18401064,946.8,944.75,1.5670494]
[1768364608188,0.18401064,946.8,944.76,1.5670494]
[1768364608488,0.18401064,946.8,944.75,1.5670494]
[1768364609187,0.18401064,946.8,944.76,1.5670494]
[1768364609384,0.18401064,946.8,944.75,1.5670494]
[1768364609588,0.18401064,946.8,944.77,1.5670494]
[1768364610088,0.18401064,946.8,944.78,1.5670494]
[1768364611288,0.18401064,946.8,944.77,1.5670494]
[1768364611486,0.18401064,946.8,944.76,1.5670494]
[1768364612186,0.18401064,946.8,944.77,1.5670494]
[1768364612390,0.18401064,946.8,944.76,1.5670494]
[1768364613088,0.18401064,946.8,944.77,1.5670494]
[1768364614490,0.18401064,946.8,944.83,1.5670494]
[1768364616192,0.18401064,946.8,944.84,1.5670494]
[1768364617292,0.18401064,946.8,944.85,1.5670494]
[1768364624500,0.18401064,946.8,944.94,1.5670494]
[1768364627201,0.18401064,946.8,944.93,1.5670494]
[1768364627397,0.18401064,946.8,944.94,1.5670494]
[1768364627797,0.0104369,947.75,944.94,1.5670494]
[1768364627996,0.18388569,946.34,944.94,1.5670494]
[1768364628398,5.1952774,948.18,944.94,1.5670494]
[1768364628699,0.00903694,947.29,944.94,1.5670494]
[1768364629101,5.1952774,948.18,944.94,1.5670494]
[1768364629699,0.18388618,947.38,944.94,1.5670494]
[1768364630600,0.18388618,947.38,944.92,1.5670494]
[1768364632604,0.18388618,947.38,944.94,1.5670494]
[1768364632904,0.18388618,947.38,945.03,1.5670494]
[1768364633202,0.18388618,947.38,945.06,1.5670494]
[1768364633500,0.18388618,947.38,945.07,1.5670494]
[1768364637408,0.18388618,947.38,945.06,1.5670494]
[1768364639309,0.18388618,947.38,945.05,1.5670494]
[1768364640006,0.18388618,947.38,945.06,1.5670494]
[1768364640309,0.18388618,947.38,945.05,1.5670494]
[1768364643204,0.18388618,947.38,945.04,1.5670494]
[1768364647312,0.18388618,947.38,945.03,1.5670494]
[1768364648412,0.18388618,947.38,944.94,1.5670494]
[1768364649513,0.18388618,947.38,944.97,1.5670494]
[1768364650614,0.18388618,947.38,944.99,1.5670494]
[1768364651410,0.18388618,947.38,945.0,1.5670494]
[1768364655417,0.18388618,947.38,945.01,1.5670494]
[1768364657219,0.18388618,947.38,945.03,1.5670494]
[1768364657420,0.18388618,947.38,945.04,1.5670494]
[1768364659322,0.18388618,947.38,945.05,1.5670494]
[1768364660621,0.18388618,947.38,945.04,1.5670494]
[1768364662422,0.18388618,947.38,945.03,1.5670494]
[1768364662726,0.18388618,947.38,944.93,1.5670494]
[1768364664322,0.18388618,947.38,944.32,0.18388569]
[1768364664323,0.18388618,947.38,944.94,1.5670494]
[1768364667326,0.18388618,947.38,944.95,1.5670494]
[1768364669324,0.18388618,947.38,944.96,1.5670494]
[1768364670630,0.18388618,947.38,944.91,1.5670494]
[1768364678238,0.18388618,947.38,944.9,1.5670494]
[1768364679138,0.18388618,947.38,944.89,1.5670494]
[1768364679634,0.18388618,947.38,944.87,1.5670494]
[1768364680536,0.18388618,947.38,944.92,1.5670494]
[1768364681234,0.18388618,947.38,944.91,1.5670494]
[1768364681539,0.18388618,947.38,944.92,1.5670494]
[1768364682335,0.18388618,947.38,944.91,1.5670494]
[1768364689136,0.18388618,947.38,944.92,1.5670494]
[1768364690638,0.18388618,947.38,944.91,1.5670494]
[1768364692742,0.18388618,947.38,944.92,1.5670494]
[1768364696247,0.18388618,947.38,944.93,1.5670494]
[1768364696949,0.18388618,947.38,945.03,1.5670494]
[1768364697245,0.18388618,947.38,945.04,1.5670494]
[1768364700649,0.18388618,947.38,945.03,1.5670494]
[1768364701150,0.18388618,947.38,945.04,1.5670494]
[1768364706255,0.18388618,947.38,945.05,1.5670494]
[1768364710257,0.18388618,947.38,945.04,1.5670494]
[1768364710657,0.18388618,947.38,945.02,1.5670494]
[1768364711661,0.18388618,947.38,945.16,1.5670494]
[1768364712256,0.18388618,947.38,945.15,1.5670494]
[1768364713361,0.18388618,947.38,945.14,1.5670494]
[1768364714259,0.18388618,947.38,945.13,1.5670494]
[1768364716162,0.18388618,947.38,945.12,1.5670494]
[1768364717258,0.18388618,947.38,945.11,1.5670494]
[1768364717962,0.18388618,947.38,945.12,1.5670494]
[1768364719259,0.18388618,947.38,945.11,1.5670494]
[1768364720065,0.18388618,947.38,945.12,1.5670494]
[1768364720662,0.18388618,947.38,945.16,1.5670494]
[1768364722263,0.18388618,947.38,945.15,1.5670494]
[1768364722667,0.18388618,947.38,945.18,1.5670494]
[1768364722965,0.18388618,947.38,945.19,1.5670494]
[1768364723263,0.18388618,947.38,945.2,1.5670494]
[1768364723762,0.18388618,947.38,945.26,1.5670494]
[1768364723966,0.18388618,947.38,945.27,1.5670494]
[1768364724167,0.18388618,947.38,945.28,1.5670494]
[1768364724463,0.18388618,947.38,945.27,1.5670494]
[1768364726266,0.18388618,947.38,945.26,1.5670494]
[1768364726466,0.18388618,947.38,945.31,1.5670494]
[1768364727265,0.18388618,947.38,945.3,1.5670494]
[1768364727666,0.18388618,947.38,945.31,1.5670494]
[1768364728361,0.18388618,947.38,944.63,2.6117491]
[1768364728362,0.18388618,947.38,945.3,1.5670494]
[1768364729264,0.18388618,947.38,945.29,1.5670494]
[1768364732267,0.18388618,947.38,945.28,1.5670494]
[1768364732465,0.18388618,947.38,945.3,1.5670494]
[1768364733467,0.18388618,947.38,945.29,1.5670494]
[1768364740677,0.18388618,947.38,945.3,1.5670494]
[1768364741678,0.18388618,947.38,945.29,1.5670494]
[1768364743876,0.18388618,947.38,945.28,1.5670494]
[1768364744778,0.18388618,947.38,945.2,1.5670494]
[1768364745884,0.18388618,947.38,945.19,1.5670494]
[1768364747284,0.18388618,947.38,945.2,1.5670494]
[1768364747883,0.18388618,947.38,945.17,1.5670494]
[1768364748281,0.18388618,947.38,945.18,1.5670494]
[1768364750083,0.18388618,947.38,945.19,1.5670494]
[1768364751286,0.18388618,947.38,945.2,1.5670494]
[1768364751986,0.18388618,947.38,945.19,1.5670494]
[1768364752185,0.18388618,947.38,945.13,1.5670494]
[1768364752482,0.18388618,947.38,945.14,1.5670494]
[1768364753183,0.18388618,947.38,945.15,1.5670494]
[1768364755286,0.18388618,947.38,945.16,1.5670494]
[1768364756287,0.18388618,947.38,945.17,1.5670494]
[1768364760686,0.18388618,947.38,945.16,1.5670494]
[1768364769394,0.18388618,947.38,945.15,1.5670494]
[1768364770594,0.18388618,947.38,945.17,1.5670494]
[1768364779196,0.18388618,947.38,945.18,1.5670494]
[1768364782198,0.18388618,947.38,945.16,1.5670494]
[1768364782502,0.18388618,947.38,945.17,1.5670494]
[1768364784203,0.18388618,947.38,945.18,1.5670494]
[1768364785404,0.18388618,947.38,945.11,1.5670494]
[1768364785604,0.18388618,947.38,945.1,1.5670494]
[1768364786203,0.18388618,947.38,945.09,1.5670494]
[1768364786398,0.18388618,947.38,945.1,1.5670494]
[1768364787201,0.18388618,947.38,945.09,1.5670494]
[1768364787505,0.18388618,947.38,945.07,1.5670494]
[1768364788300,0.18388618,947.38,945.08,1.5670494]
[1768364789204,0.18388618,947.38,945.07,1.5670494]
[1768364789504,0.18388618,947.38,945.08,1.5670494]
[1768364790607,0.18388618,947.38,945.07,1.5670494]
[1768364791105,0.18388618,947.38,945.06,1.5670494]
[1768364791407,0.18388618,947.38,945.05,1.5670494]
[1768364794204,0.18388618,947.38,945.04,1.5670494]
[1768364795912,0.18388618,947.38,945.03,1.5670494]
[1768364797210,0.18388618,947.38,945.02,1.5670494]
[1768364801212,0.18388618,947.38,945.01,1.5670494]
[1768364805921,0.18388618,947.38,945.02,1.5670494]
[1768364807425,0.18388618,947.38,945.01,1.5670494]
[1768364810626,0.18388618,947.38,944.98,1.5670494]
[1768364810829,0.18388618,947.38,944.89,1.5670494]
[1768364811225,0.18388618,947.38,944.88,1.5670494]
[1768364817638,0.18388618,947.38,944.89,1.5670494]
[1768364818233,0.18388618,947.38,944.88,1.5670494]
[1768364820738,0.18388618,947.38,944.91,1.5670494]
[1768364823439,0.18388618,947.38,944.93,1.5670494]
[1768364825139,0.18388618,947.38,944.94,1.5670494]
[1768364827640,0.18388618,947.38,944.92,1.5670494]
[1768364829138,0.18388618,947.38,944.93,1.5670494]
[1768364829640,5.1952774,948.1,944.93,1.5670494]
[1768364829844,0.18389541,946.77,944.93,1.5670494]
[1768364830144,5.1952774,948.1,944.93,1.5670494]
[1768364830340,0.18389541,946.32,944.94,1.5670494]
[1768364830641,0.01124773,947.72,944.93,1.5670494]
[1768364830941,0.18389493,946.31,944.93,1.5670494]
[1768364831141,5.1952774,948.1,944.93,1.5670494]
[1768364831442,0.18389541,946.31,944.93,1.5670494]
[1768364831842,0.0136342,947.26,944.93,1.5670494]
[1768364832045,0.1838959,946.31,944.93,1.5670494]
[1768364832244,0.0136342,947.26,944.93,1.5670494]
[1768364832547,0.1838959,946.31,944.93,1.5670494]
[1768364832742,5.1952774,948.09,944.93,1.5670494]
[1768364833046,0.1838959,946.31,944.93,1.5670494]
[1768364833442,5.1952774,948.09,944.93,1.5670494]
[1768364833646,0.1838959,946.31,944.93,1.5670494]
[1768364833843,0.01285095,947.26,944.93,1.5670494]
[1768364834043,0.1838959,946.31,944.93,1.5670494]
[1768364834442,5.1952774,948.09,944.93,1.5670494]
[1768364834646,0.1838959,946.31,944.93,1.5670494]
[1768364834847,5.1952774,948.09,944.93,1.5670494]
[1768364835148,0.1838959,946.31,944.93,1.5670494]
[1768364835443,0.00830548,947.26,944.93,1.5670494]
[1768364835647,0.1838959,946.31,944.93,1.5670494]
[1768364835948,5.1952774,948.09,944.93,1.5670494]
[1768364836245,0.1838959,946.31,944.93,1.5670494]
[1768364836450,0.01103684,947.26,944.93,1.5670494]
[1768364836750,0.1838959,946.31,944.93,1.5670494]
[1768364837252,0.1838959,946.31,944.94,1.5670494]
[1768364838947,0.1838959,946.31,944.93,1.5670494]
[1768364840654,0.1838959,946.31,944.96,1.5670494]
[1768364849163,0.1838959,946.31,944.97,1.5670494]
[1768364853166,0.1838959,946.31,944.98,1.5670494]
[1768364854161,0.1838959,946.31,944.99,1.5670494]
[1768364856661,0.1838959,946.31,945.0,1.5670494]
[1768364867375,0.1838959,946.31,945.01,1.5670494]
[1768364870676,0.01031489,947.26,945.03,1.5670494]
[1768364871076,0.18387841,946.71,945.03,1.5670494]
[1768364875277,0.18387841,946.71,945.04,1.5670494]
[1768364877082,0.18387841,946.71,945.1,1.5670494]
[1768364877381,0.18387841,946.71,945.09,1.5670494]
[1768364878376,0.18387841,946.71,945.08,1.5670494]
[1768364880681,0.18387841,946.71,945.09,1.5670494]
[1768364880983,0.18387841,946.71,945.08,1.5670494]
[1768364884187,0.18387841,946.71,945.07,1.5670494]
[1768364889194,0.18387841,946.71,945.06,1.5670494]
[1768364893196,0.18387841,946.71,945.05,1.5670494]
[1768364893397,0.18387841,946.71,944.99,1.5670494]
[1768364896900,0.18387841,946.71,945.01,1.5670494]
[1768364905411,0.18387841,946.71,945.02,1.5670494]
[1768364913112,0.18387841,946.71,945.03,1.5670494]
[1768364918721,0.18387841,946.71,944.67,1.5670494]
[1768364919021,0.18387841,946.71,944.68,1.5670494]
[1768364919218,0.18387841,946.71,944.65,1.5670494]
[1768364920123,0.18387841,946.71,944.62,1.5670494]
[1768364920719,0.18387841,946.71,944.7,1.5670494]
[1768364921121,0.18387841,946.71,944.69,1.5670494]
[1768364921424,0.18387841,946.71,944.79,1.5670494]
[1768364924220,0.18387841,946.71,944.78,1.5670494]
[1768364931427,0.18387841,946.71,944.79,1.5670494]
[1768364931831,0.18387841,946.71,944.8,1.5670494]
[1768364932027,0.18387841,946.71,944.83,1.5670494]
[1768364932227,0.18387841,946.71,944.93,1.5670494]
[1768364935233,0.18387841,946.71,944.94,1.5670494]
[1768364940236,0.18387841,946.71,944.95,1.5670494]
[1768364941142,0.18387841,946.71,944.94,1.5670494]
[1768364941336,0.18387841,946.71,944.95,1.5670494]
[1768364943239,0.18387841,946.71,944.94,1.5670494]
[1768364943535,0.18387841,946.71,944.95,1.5670494]
[1768364944134,0.18387841,946.71,944.94,1.5670494]
[1768364944339,0.18387841,946.71,944.95,1.5670494]
[1768364945139,0.18387841,946.71,944.94,1.5670494]
[1768364947841,0.18387841,946.71,944.95,1.5670494]
[1768364950944,0.18387841,946.71,945.01,1.5670494]
[1768364951243,0.18387841,946.71,945.02,1.5670494]
[1768364951538,0.18387841,946.71,945.05,1.5670494]
[1768364951742,0.18387841,946.71,945.1,1.5670494]
[1768364951940,0.18387841,946.71,945.11,1.5670494]
[1768364952339,0.18387841,946.71,945.1,1.5670494]
[1768364954141,0.18387841,946.71,945.09,1.5670494]
[1768364955340,0.18387841,946.71,945.08,1.5670494]
[1768364957345,0.18387841,946.71,945.07,1.5670494]
[1768364958444,0.18387841,946.71,945.06,1.5670494]
[1768364958647,0.18387841,946.71,944.43,0.18389444]
[1768364958648,0.18387841,946.71,945.05,1.5670494]
[1768364958949,0.18387841,946.71,945.08,1.5670494]
[1768364959148,0.18387841,946.71,945.1,1.5670494]
[1768364959349,0.18387841,946.71,945.09,1.5670494]
[1768364961351,0.18387841,946.71,945.08,1.5670494]
[1768364963353,0.18387841,946.71,945.07,1.5670494]
[1768364964154,0.18387841,946.71,945.08,1.5670494]
[1768364965051,0.18387841,946.71,945.09,1.5670494]
[1768364966157,0.18387841,946.71,945.1,1.5670494]
[1768364968254,0.18387841,946.71,945.09,1.5670494]
[1768364971155,0.18387841,946.71,945.1,1.5670494]
[1768364973160,0.18387841,946.71,945.11,1.5670494]
[1768364975163,0.18387841,946.71,945.12,1.5670494]
[1768364976159,0.18387841,946.71,945.13,1.5670494]
[1768364980167,0.18387841,946.71,945.14,1.5670494]
[1768364983270,0.18387841,946.71,945.15,1.5670494]
[1768364987267,0.18387841,946.71,945.16,1.5670494]
[1768364987568,0.18387841,946.71,945.15,1.5670494]
[1768364988371,0.18387841,946.71,945.16,1.5670494]
[1768364990369,0.18387841,946.71,945.17,1.5670494]
[1768364991372,0.18387841,946.71,945.18,1.5670494]
[1768364993377,0.18387841,946.71,945.19,1.5670494]
[1768364994378,0.18387841,946.71,945.2,1.5670494]
[1768364995279,0.18387841,946.71,945.09,1.5670494]
[1768364995479,0.18387841,946.71,945.1,1.5670494]
[1768364995775,0.18387841,946.71,945.04,1.5670494]
[1768364996279,0.18387841,946.71,945.03,1.5670494]
[1768364996680,0.18387841,946.71,945.0,1.5670494]
[1768364996880,0.18387841,946.71,944.92,1.5670494]
[1768364997176,0.18387841,946.71,944.86,1.5670494]
[1768364997380,0.18387841,946.71,944.82,1.5670494]
[1768364998381,0.18387841,946.71,944.8,1.5670494]
[1768364999279,0.18387841,946.71,944.78,1.5670494]
[1768365000782,0.18387841,946.71,944.76,1.5670494]
[1768365001178,0.18387841,946.71,944.75,1.5670494]
[1768365002183,0.18387841,946.71,944.73,1.5670494]
[1768365002680,0.18387841,946.71,944.63,1.5670494]
[1768365003183,0.18387841,946.71,944.61,1.5670494]
[1768365004182,0.18387841,946.71,944.6,1.5670494]
[1768365005284,0.18387841,946.71,944.58,1.5670494]
[1768365006184,0.18387841,946.71,944.57,1.5670494]
[1768365007185,0.18387841,946.71,944.56,1.5670494]
[1768365008086,0.18387841,946.71,944.55,1.5670494]
[1768365008281,0.18387841,946.71,944.54,1.5670494]
[1768365009281,0.18387841,946.71,944.53,1.5670494]
[1768365011191,0.18387841,946.71,944.52,1.5670494]
[1768365011490,0.18387841,946.71,944.53,1.5670494]
[1768365013188,0.18387841,946.71,944.52,1.5670494]
[1768365014295,0.18387841,946.71,944.51,1.5670494]
[1768365015992,0.18387841,946.71,944.48,1.5670494]
[1768365016196,0.18387841,946.71,944.37,1.5670494]
[1768365016396,0.18387841,946.71,944.36,1.5670494]
[1768365017193,0.18387841,946.71,944.29,1.5670494]
[1768365017596,0.18387841,946.71,944.28,1.5670494]
[1768365018097,0.18387841,946.71,944.26,1.5670494]
[1768365019097,0.18387841,946.71,944.25,1.5670494]
[1768365020197,0.18387841,946.71,944.24,1.5670494]
[1768365021098,0.18387841,946.71,944.2,0.18395908]
[1768365024701,0.18387841,946.71,944.01,1.5670494]
[1768365024901,0.18387841,946.71,944.01,1.75106101]
[1768365025197,0.18387841,946.71,944.01,0.18401161]
[1768365026096,0.18387841,946.71,944.03,1.5670494]
[1768365026300,0.18387841,946.71,944.02,1.5670494]
[1768365026601,0.18387841,946.71,944.01,0.18401161]
[1768365028798,0.18387841,946.71,942.96,3.6564487]
[1768365028799,0.18387841,946.71,943.67,1.5670494]
[1768365029002,0.18387841,946.71,943.78,0.18404227]
[1768365053020,0.18387841,946.71,943.6,1.5670494]
[1768365053420,0.18387841,946.71,943.65,0.18409143]
[1768365058226,0.18387841,946.71,943.65,1.75114083]
[1768365059124,0.18387841,946.71,943.67,1.5670494]
[1768365060125,0.18387841,946.71,943.69,1.5670494]
[1768365061134,0.18387841,946.71,943.7,1.5670494]
[1768365062333,0.18387841,946.71,943.72,1.5670494]
[1768365063133,0.18387841,946.71,943.73,1.5670494]
[1768365063938,0.18387841,946.71,943.74,1.5670494]
[1768365064437,0.18387841,946.71,943.75,1.5670494]
[1768365065239,0.18387841,946.71,943.77,1.5670494]
[1768365066239,0.18387841,946.71,943.78,1.5670494]
[1768365066439,0.18387841,946.71,943.79,1.5670494]